bitfinex/quotes_BTCUSD_20251231
["timestamp","ask_amount","ask_price","bid_price","bid_amount"]
[1767193454804,0.04624615,88433.0,88409.0,0.0005412]
[1767193455004,0.04704441,88431.0,88409.0,0.0005412]
[1767193455200,0.04704441,88431.0,88410.0,0.0114]
[1767193455630,0.04704441,88429.0,88410.0,0.0114]
[1767193456955,0.04704441,88429.0,88404.0,0.0002]
[1767193457101,0.05296298,88429.0,88404.0,0.0002]
[1767193457303,0.04704441,88429.0,88400.0,0.0114]
[1767193458217,0.04704441,88427.0,88400.0,0.0114]
[1767193458624,0.04704441,88427.0,88400.0,0.02271221]
[1767193459022,0.04704441,88427.0,88401.0,0.01131208]
[1767193459459,0.04704441,88427.0,88400.0,0.07927298]
[1767193459661,0.04704441,88427.0,88400.0,0.0114]
[1767193461589,0.04860469,88425.0,88400.0,0.0114]
[1767193461936,0.04860469,88423.0,88400.0,0.0114]
[1767193463718,0.04860469,88423.0,88400.0,0.0116064]
[1767193465182,0.04860469,88421.0,88400.0,0.0116064]
[1767193466567,0.04860469,88421.0,88400.0,0.0002064]
[1767193466767,0.04860469,88421.0,88401.0,0.0114]
[1767193467851,0.04860469,88421.0,88401.0,0.0116064]
[1767193468677,0.00063488,88420.0,88401.0,0.0116064]
[1767193468899,0.04860469,88419.0,88401.0,0.02291848]
[1767193469089,0.04860469,88419.0,88402.0,0.01135657]
[1767193469833,0.04860469,88419.0,88402.0,0.02287493]
[1767193470037,0.04860469,88419.0,88406.0,0.01131144]
[1767193470268,0.03302056,88419.0,88407.0,0.01131132]
[1767193470475,0.03302056,88419.0,88409.0,0.0002]
[1767193471587,0.03302056,88419.0,88372.0,0.45263083]
[1767193471588,0.04860469,88408.0,88397.0,0.000148]
[1767193471785,0.04860469,88408.0,88381.0,0.01151464]
[1767193471786,0.04860469,88408.0,88394.0,0.0114]
[1767193472017,0.04860469,88408.0,88381.0,0.06808787]
[1767193472018,0.000148,88428.0,88381.0,0.0002]
[1767193472019,0.04860469,88393.0,88381.0,0.0002]
[1767193472218,0.04805469,88393.0,88391.0,0.0114]
[1767193472614,0.0381914,88393.0,88391.0,0.0114]
[1767193473226,0.0381914,88393.0,88392.0,0.00030634]
[1767193474125,0.00032854,88392.0,88391.0,0.0114]
[1767193474339,0.04860469,88411.0,88392.0,0.000148]
[1767193474534,0.04871103,88411.0,88392.0,0.01602576]
[1767193474936,0.04871103,88411.0,88392.0,0.01587776]
[1767193476450,0.04871103,88411.0,88391.0,0.0114]
[1767193478620,0.04860469,88409.0,88391.0,0.0114]
[1767193479561,0.04860469,88409.0,88396.0,0.05656359]
[1767193479760,0.04871103,88411.0,88409.0,0.000148]
[1767193479960,0.04871103,88411.0,88401.0,0.0114]
[1767193480198,0.04871103,88411.0,88401.0,0.02045902]
[1767193481790,0.04871103,88411.0,88401.0,0.0114]
[1767193482390,0.04871103,88411.0,88401.0,0.02271208]
[1767193482619,0.04860469,88419.0,88403.0,0.01131183]
[1767193482975,0.0486929,88419.0,88403.0,0.01131183]
[1767193483193,0.0486929,88419.0,88406.0,0.0678681]
[1767193483408,0.0486929,88419.0,88406.0,0.01131144]
[1767193483606,0.0486929,88419.0,88407.0,0.01131132]
[1767193483723,0.0486929,88419.0,88408.0,0.01131119]
[1767193483920,0.0486929,88419.0,88407.0,0.01131132]
[1767193484126,0.0486929,88419.0,88409.0,0.01131106]
[1767193484127,8.821e-05,88419.0,88409.0,0.01131106]
[1767193484464,0.000148,88420.0,88413.0,0.01131055]
[1767193484663,0.0002,88429.0,88418.0,0.01130991]
[1767193484861,0.0002,88429.0,88419.0,0.02206537]
[1767193485052,0.0002,88429.0,88419.0,0.01075559]
[1767193485256,0.04929381,88428.0,88419.0,0.01075559]
[1767193486120,0.04923861,88428.0,88419.0,0.01075559]
[1767193486295,0.04923861,88428.0,88419.0,0.01974861]
[1767193486681,0.04923861,88428.0,88419.0,0.01075559]
[1767193489621,0.04923861,88428.0,88412.0,0.06786375]
[1767193489804,0.04923861,88428.0,88413.0,0.05655266]
[1767193490002,0.04923861,88428.0,88412.0,0.06786375]
[1767193490236,0.04923861,88428.0,88414.0,0.01131042]
[1767193490437,0.04923861,88428.0,88415.0,0.01697486]
[1767193491236,0.04923861,88428.0,88415.0,0.02828515]
[1767193491474,0.04923861,88428.0,88421.0,0.01130953]
[1767193491748,9.28e-05,88428.0,88425.0,0.01130901]
[1767193491946,9.28e-05,88428.0,88426.0,0.07066536]
[1767193492160,9.28e-05,88428.0,88426.0,0.01412122]
[1767193492724,9.28e-05,88428.0,88426.0,0.07066548]
[1767193493260,0.0002,88429.0,88427.0,0.05654381]
[1767193493452,0.04933989,88438.0,88428.0,0.01130863]
[1767193493606,0.04933989,88438.0,88430.0,0.01130837]
[1767193493799,0.04933989,88438.0,88429.0,0.03430759]
[1767193493993,0.04933989,88438.0,88431.0,0.01130825]
[1767193494203,0.04933989,88438.0,88433.0,0.01130799]
[1767193494409,0.0002032,88439.0,88433.0,0.06784793]
[1767193494609,0.0002032,88439.0,88434.0,0.03080485]
[1767193494813,0.0002032,88439.0,88438.0,0.05653678]
[1767193495021,0.0002032,88439.0,88438.0,0.06733677]
[1767193495213,0.0002032,88439.0,88438.0,0.0114]
[1767193496552,0.0002032,88439.0,88438.0,0.06793678]
[1767193496890,0.04933989,88447.0,88439.0,0.01130722]
[1767193497046,0.00055452,88446.0,88440.0,0.0678426]
[1767193497233,0.00055452,88446.0,88438.0,0.09084266]
[1767193497435,0.04989441,88446.0,88441.0,0.01130697]
[1767193497730,0.04989441,88446.0,88439.0,0.06784332]
[1767193497934,0.04989441,88446.0,88440.0,0.01949699]
[1767193498585,0.04989441,88446.0,88439.0,0.01130722]
[1767193498733,0.04989441,88446.0,88438.0,0.0114]
[1767193498936,0.0002032,88463.0,88432.0,0.11715472]
[1767193499208,0.04933989,88474.0,88453.0,0.01130543]
[1767193499367,0.04933989,88471.0,88453.0,0.00010631]
[1767193499769,0.04933989,88471.0,88453.0,3.1e-07]
[1767193499962,0.0114,88472.0,88454.0,0.00791427]
[1767193499963,0.04933989,88462.0,88454.0,0.00791427]
[1767193500186,0.04933989,88460.0,88454.0,0.00791427]
[1767193500503,0.04933989,88458.0,88455.0,0.01130518]
[1767193500709,0.04923389,88458.0,88455.0,0.01130518]
[1767193500908,0.04923389,88458.0,88454.0,0.00791427]
[1767193501113,0.04923389,88458.0,88453.0,3.1e-07]
[1767193501114,0.04988989,88454.0,88453.0,3.1e-07]
[1767193501423,0.04933989,88454.0,88453.0,3.1e-07]
[1767193501591,0.04933989,88454.0,88432.0,0.28912655]
[1767193501592,0.04933989,88454.0,88443.0,3.1e-07]
[1767193501810,0.04933989,88454.0,88412.0,0.452427]
[1767193501811,0.04944611,88454.0,88442.0,0.05653414]
[1767193501957,0.04944611,88454.0,88441.0,0.01130697]
[1767193501958,0.04944611,88454.0,88443.0,0.06784023]
[1767193502354,0.04933989,88452.0,88439.0,0.0565359]
[1767193502556,0.04933989,88450.0,88441.0,0.01130697]
[1767193502767,0.04933989,88450.0,88443.0,0.05653321]
[1767193502992,0.0114,88449.0,88444.0,0.01130658]
[1767193503193,0.04933989,88450.0,88447.0,0.0113062]
[1767193503556,0.0114,88453.0,88451.0,0.06783369]
[1767193503688,0.00010622,88454.0,88452.0,0.05652783]
[1767193503887,0.0002,88463.0,88462.0,0.05652144]
[1767193504093,0.0002,88463.0,88462.0,0.00904361]
[1767193504296,0.0116,88463.0,88460.0,0.01130454]
[1767193504495,0.04953989,88463.0,88462.0,0.05652144]
[1767193504703,0.06093989,88463.0,88461.0,0.0565216]
[1767193504960,0.06093989,88463.0,88458.0,0.0113048]
[1767193504961,0.06093989,88463.0,88459.0,0.01130467]
[1767193505165,0.06039089,88463.0,88458.0,0.0113048]
[1767193505463,0.04899089,88463.0,88458.0,0.0113048]
[1767193505593,0.04933989,88461.0,88460.0,0.01130454]
[1767193505798,0.01548351,88461.0,88458.0,0.056524]
[1767193506035,0.0114,88462.0,88459.0,0.01130467]
[1767193506239,0.0114,88462.0,88448.0,0.01130607]
[1767193506240,0.04933989,88461.0,88448.0,0.01130607]
[1767193506442,0.04933989,88458.0,88448.0,0.00010627]
[1767193507072,0.04933989,88458.0,88450.0,0.01130582]
[1767193507277,0.04933989,88484.0,88459.0,0.01130467]
[1767193507472,0.04933989,88482.0,88465.0,0.0113039]
[1767193507648,0.04933989,88482.0,88467.0,0.01130364]
[1767193507862,0.0004,88490.0,88467.0,0.01130364]
[1767193507863,0.04933989,88480.0,88468.0,0.01130352]
[1767193508090,0.04933989,88480.0,88467.0,0.06782175]
[1767193508091,0.04933989,88480.0,88467.0,0.01130364]
[1767193508304,0.06073989,88479.0,88464.0,0.05651967]
[1767193508482,0.06073989,88479.0,88466.0,0.01130377]
[1767193508691,0.04933989,88479.0,88463.0,0.06782461]
[1767193508867,0.04933989,88477.0,88461.0,0.05652148]
[1767193509069,0.04933989,88477.0,88463.0,0.01130416]
[1767193509290,0.04933989,88477.0,88464.0,0.01130403]
[1767193509450,0.04933989,88477.0,88465.0,0.0113039]
[1767193510091,0.04933989,88477.0,88466.0,0.01130377]
[1767193510409,0.04933989,88477.0,88467.0,0.01130364]
[1767193510915,0.04933989,88477.0,88470.0,0.01130326]
[1767193511117,0.04933989,88477.0,88469.0,0.01130339]
[1767193511118,0.04933989,88475.0,88469.0,0.01130339]
[1767193511663,0.0004,88490.0,88469.0,0.01130339]
[1767193511664,0.0114,88474.0,88471.0,0.01130313]
[1767193511857,0.0114,88474.0,88470.0,0.06781952]
[1767193512087,0.06073989,88476.0,88474.0,0.000106]
[1767193512284,0.06073989,88476.0,88471.0,0.05632157]
[1767193512510,0.0004,88490.0,88472.0,0.06781768]
[1767193512511,0.0114,88475.0,88472.0,0.06781768]
[1767193512707,0.04933989,88484.0,88472.0,0.06781768]
[1767193512708,0.04933989,88484.0,88475.0,0.01130262]
[1767193512934,0.04933989,88484.0,88471.0,0.01130313]
[1767193513138,0.04933989,88482.0,88474.0,0.01130275]
[1767193513357,0.04933989,88482.0,88472.0,0.01130301]
[1767193513358,0.04933989,88482.0,88473.0,0.01130288]
[1767193513672,0.04933989,88482.0,88474.0,0.02034516]
[1767193513817,0.04933989,88482.0,88475.0,0.06781575]
[1767193513818,0.04944615,88482.0,88475.0,0.06781575]
[1767193514020,0.04944615,88482.0,88474.0,0.00904241]
[1767193514373,0.04944615,88482.0,88474.0,0.02034516]
[1767193514765,0.04944615,88482.0,88475.0,0.01130262]
[1767193514921,0.04944615,88482.0,88476.0,0.0113025]
[1767193515125,0.0114,88481.0,88476.0,0.0113025]
[1767193515350,0.011294,88481.0,88477.0,0.01130237]
[1767193515551,0.011294,88481.0,88476.0,0.06781471]
[1767193515756,0.000549,88476.0,88469.0,0.01130339]
[1767193515969,0.04933989,88477.0,88469.0,0.01130339]
[1767193516132,0.04933989,88477.0,88470.0,0.01130326]
[1767193516332,0.04933989,88477.0,88468.0,0.01130352]
[1767193516580,0.011294,88481.0,88474.0,0.01130275]
[1767193516888,0.0114,88481.0,88474.0,0.06781651]
[1767193517110,0.0114,88481.0,88475.0,0.06771768]
[1767193517285,0.0114,88481.0,88476.0,0.04520994]
[1767193517470,0.00010626,88482.0,88474.0,0.01130275]
[1767193517671,0.01150626,88482.0,88475.0,0.01130262]
[1767193517893,0.06084615,88482.0,88475.0,0.01130262]
[1767193518092,0.06084615,88482.0,88475.0,0.06781555]
[1767193518301,0.00010626,88482.0,88476.0,0.0113025]
[1767193518511,0.0114,88481.0,88477.0,0.01130237]
[1767193518740,0.0114,88481.0,88475.0,0.0678157]
[1767193518905,0.00010626,88482.0,88476.0,0.06781494]
[1767193519088,0.00010626,88482.0,88475.0,0.06781567]
[1767193519285,0.00010626,88482.0,88422.0,0.08094611]
[1767193519286,0.00055,88475.0,88465.0,0.0113039]
[1767193519467,0.01504867,88476.0,88466.0,0.05651885]
[1767193519674,0.01504867,88476.0,88466.0,0.06782262]
[1767193519875,0.04845634,88474.0,88444.0,0.01130658]
[1767193520099,0.04845634,88472.0,88446.0,0.06783796]
[1767193520300,0.04845634,88472.0,88447.0,0.01583834]
[1767193520979,0.04845634,88472.0,88432.0,0.01130812]
[1767193521152,0.04845634,88472.0,88437.0,0.01130748]
[1767193521380,0.04845634,88472.0,88425.0,0.01130901]
[1767193521560,0.04931011,88470.0,88422.0,0.0113094]
[1767193521763,0.04931011,88468.0,88423.0,0.01021117]
[1767193522000,0.04931011,88466.0,88423.0,0.02152044]
[1767193522167,0.04931011,88464.0,88423.0,0.01021117]
[1767193522371,0.04931011,88462.0,88423.0,0.01021117]
[1767193522568,0.0114,88465.0,88423.0,0.01021117]
[1767193522569,0.04931011,88460.0,88423.0,0.01021117]
[1767193522772,0.04931011,88458.0,88422.0,0.06785611]
[1767193522938,0.04931011,88456.0,88425.0,0.01130901]
[1767193523131,0.04931011,88456.0,88428.0,0.01130863]
[1767193523342,0.04931011,88456.0,88428.0,0.06785177]
[1767193523547,0.0114,88455.0,88430.0,0.01130837]
[1767193523809,0.04931011,88454.0,88431.0,0.00791601]
[1767193524098,0.04931011,88454.0,88431.0,0.07576546]
[1767193524250,0.04931011,88454.0,88432.0,0.01130812]
[1767193524690,0.04940216,88454.0,88432.0,0.01130812]
[1767193524896,0.04940216,88454.0,88431.0,0.00791601]
[1767193525190,0.04940216,88454.0,88424.0,0.01130914]
[1767193525191,0.04940216,88454.0,88432.0,0.0652482]
[1767193525438,0.04931011,88452.0,88432.0,0.00870773]
[1767193525854,0.04931011,88452.0,88432.0,0.02001585]
[1767193526059,0.04931011,88452.0,88432.0,0.00870773]
[1767193527361,0.04931011,88452.0,88422.0,0.0113094]
[1767193527693,0.04931011,88452.0,88421.0,0.01130953]
[1767193528089,0.04931011,88452.0,88422.0,0.06785639]
[1767193528295,0.04931011,88452.0,88422.0,0.0113094]
[1767193528493,0.04931011,88450.0,88424.0,0.01130914]
[1767193528695,0.04931011,88450.0,88425.0,0.067854]
[1767193528918,0.04931011,88450.0,88425.0,0.01130901]
[1767193529124,0.04931011,88450.0,88419.0,0.23759432]
[1767193529125,0.04931011,88450.0,88419.0,0.0114]
[1767193529327,0.04931011,88450.0,88409.0,0.06840742]
[1767193529530,0.05668,88451.0,88409.0,0.00054115]
[1767193529531,0.02396436,88449.0,88409.0,0.00054115]
[1767193529730,0.04931011,88447.0,88410.0,0.01131093]
[1767193529933,0.04931011,88447.0,88411.0,0.0113108]
[1767193530108,0.04931011,88447.0,88417.0,0.05654994]
[1767193530439,0.04931011,88447.0,88409.0,0.00054115]
[1767193530440,0.04931011,88447.0,88414.0,0.01131042]
[1767193530675,0.04931011,88447.0,88409.0,0.00054115]
[1767193530824,0.04931011,88445.0,88409.0,0.00054115]
[1767193531039,0.00807364,88448.0,88409.0,0.00054115]
[1767193531040,0.04931011,88443.0,88409.0,0.00054115]
[1767193531208,0.04931011,88441.0,88409.0,0.00054115]
[1767193531892,0.04931011,88439.0,88409.0,0.00054115]
[1767193532294,0.05538112,88439.0,88409.0,0.00054115]
[1767193533919,0.02391477,88438.0,88409.0,0.00054115]
[1767193534248,0.02391477,88438.0,88398.0,0.0003193]
[1767193534249,0.06071011,88437.0,88398.0,0.01163177]
[1767193534368,0.06071011,88437.0,88398.0,0.0003193]
[1767193535007,0.04931011,88435.0,88398.0,0.0003193]
[1767193535206,0.04931011,88431.0,88398.0,0.0003193]
[1767193535381,0.04931011,88429.0,88398.0,0.0003193]
[1767193536910,0.04931011,88429.0,88376.0,0.0565763]
[1767193537132,0.04931011,88425.0,88373.0,0.06789395]
[1767193537302,0.05668,88430.0,88364.0,0.0114]
[1767193537303,6.570365,88422.0,88374.0,0.01131554]
[1767193537445,0.04931011,88418.0,88377.0,0.01131516]
[1767193537796,0.04931011,88414.0,88378.0,0.01131503]
[1767193537939,0.04931011,88412.0,88379.0,0.0116342]
[1767193538146,0.05988763,88441.0,88379.0,0.0116342]
[1767193538147,0.04931011,88410.0,88383.0,0.01131439]
[1767193538378,0.04931011,88408.0,88389.0,0.01131362]
[1767193538622,0.04931011,88408.0,88391.0,0.05656673]
[1767193538838,0.04876111,88408.0,88393.0,0.01131311]
[1767193539042,0.04876111,88408.0,88392.0,0.07806163]
[1767193539043,0.04876111,88408.0,88398.0,0.01131247]
[1767193539385,0.04876111,88408.0,88400.0,0.06787328]
[1767193539386,0.0114,88407.0,88400.0,0.06787328]
[1767193539522,0.04876111,88408.0,88401.0,0.01131208]
[1767193539724,0.04931011,88406.0,88402.0,0.06787172]
[1767193539941,0.04931011,88406.0,88402.0,0.01131196]
[1767193540338,0.04931011,88406.0,88399.0,0.01131234]
[1767193540653,0.04931011,88406.0,88396.0,0.01131272]
[1767193540862,0.04931011,88406.0,88386.0,0.011314]
[1767193541080,0.04931011,88406.0,88385.0,0.06788417]
[1767193541285,0.04931011,88406.0,88381.0,0.01151464]
[1767193541415,0.04931011,88406.0,88382.0,0.05657255]
[1767193541618,0.04931011,88406.0,88386.0,0.05656995]
[1767193541835,0.04931011,88406.0,88387.0,0.01250108]
[1767193542034,0.04931011,88406.0,88388.0,0.01131375]
[1767193542232,0.04931011,88406.0,88387.0,0.0803843]
[1767193542440,0.04931011,88406.0,88387.0,0.02381496]
[1767193542934,0.04931011,88406.0,88388.0,0.01131375]
[1767193543272,0.04931011,88406.0,88388.0,0.018046]
[1767193544080,0.04931011,88406.0,88388.0,0.06788241]
[1767193544238,0.04931011,88406.0,88388.0,0.01131375]
[1767193544437,0.04931011,88406.0,88388.0,0.06788251]
[1767193545059,0.04931011,88406.0,88389.0,0.01131362]
[1767193545273,0.04931011,88406.0,88388.0,0.01131375]
[1767193545571,0.04931011,88406.0,88391.0,0.01131336]
[1767193545949,0.04931011,88406.0,88390.0,0.06788075]
[1767193546152,0.04931011,88406.0,88391.0,0.01131336]
[1767193546355,0.04931011,88406.0,88396.0,0.01131272]
[1767193546539,0.04931011,88406.0,88395.0,0.01131285]
[1767193546540,0.0114,88405.0,88395.0,0.01131285]
[1767193546737,0.0114,88405.0,88397.0,0.0113126]
[1767193546944,0.0114,88405.0,88399.0,0.01131234]
[1767193547629,0.04931011,88427.0,88398.0,0.226249]
[1767193547857,0.04931011,88418.0,88404.0,0.0113117]
[1767193547986,0.04931011,88416.0,88401.0,0.06787249]
[1767193548186,0.04931011,88416.0,88404.0,0.0113117]
[1767193548389,0.06071011,88415.0,88403.0,0.01131183]
[1767193548811,0.06071011,88415.0,88402.0,0.06787155]
[1767193549210,0.06071011,88415.0,88400.0,0.01131221]
[1767193549409,0.06071011,88415.0,88391.0,0.01131336]
[1767193549615,0.06071011,88415.0,88392.0,0.01131324]
[1767193549815,0.06071011,88415.0,88394.0,0.01131298]
[1767193550355,0.06071011,88415.0,88394.0,0.06787787]
[1767193550569,0.06071011,88415.0,88393.0,0.05656531]
[1767193550775,0.06071011,88415.0,88394.0,0.01131298]
[1767193550982,0.06071011,88415.0,88398.0,0.06787449]
[1767193551216,0.06071011,88415.0,88399.0,0.01357502]
[1767193551425,0.06071011,88415.0,88392.0,0.01131324]
[1767193551426,0.04744007,88413.0,88393.0,0.01131311]
[1767193551867,0.04744007,88413.0,88380.0,0.61105859]
[1767193551868,0.04744007,88413.0,88386.0,0.011314]
[1767193552073,0.04744007,88413.0,88387.0,0.06788327]
[1767193552524,0.04744007,88413.0,88385.0,0.07928468]
[1767193552744,0.04744007,88413.0,88383.0,0.06824086]
[1767193552958,0.04744007,88411.0,88383.0,0.00035452]
[1767193553407,0.04744007,88411.0,88381.0,0.0002]
[1767193553408,0.04744007,88409.0,88381.0,5.2e-07]
[1767193553625,0.04744007,88405.0,88363.0,0.0114]
[1767193553878,0.04744007,88403.0,88370.0,0.5125279]
[1767193554095,0.04744007,88396.0,88370.0,0.1123329]
[1767193554305,1.972297,88394.0,88370.0,0.08364267]
[1767193554520,1.697997,88392.0,88370.0,0.08364267]
[1767193554734,0.03437352,88391.0,88370.0,0.08364267]
[1767193554952,0.01040493,88390.0,88370.0,0.08364267]
[1767193555165,0.0114,88395.0,88370.0,0.08364267]
[1767193555166,0.010397,88389.0,88370.0,0.08364267]
[1767193555381,0.021797,88388.0,88370.0,0.08364267]
[1767193555606,0.04576559,88387.0,88370.0,0.08364267]
[1767193555811,0.02396859,88386.0,88370.0,0.08364267]
[1767193556047,0.0114,88387.0,88370.0,0.08364267]
[1767193556048,0.02396859,88385.0,88370.0,0.08364267]
[1767193556258,2.96051172,88384.0,88370.0,0.07069979]
[1767193556488,6.22371172,88383.0,88370.0,0.07069979]
[1767193556713,0.07394791,88384.0,88360.0,0.0002]
[1767193556714,0.012,88380.0,88360.0,0.00015736]
[1767193556930,5.066e-05,88360.0,88344.0,0.0003304]
[1767193557140,0.05668,88359.0,88344.0,0.0003537]
[1767193557850,0.05668,88359.0,88345.0,0.04955323]
[1767193558012,5.607146,88379.0,88345.0,0.04955323]
[1767193558172,0.20521625,88378.0,88345.0,0.04955323]
[1767193558373,2.093883,88376.0,88345.0,0.04955323]
[1767193558611,0.06193595,88387.0,88345.0,0.04955323]
[1767193558612,3.968822,88374.0,88345.0,0.04955323]
[1767193558796,0.625901,88372.0,88345.0,0.04955323]
[1767193558997,0.245589,88370.0,88345.0,0.04955323]
[1767193559198,0.03531175,88369.0,88345.0,0.04955323]
[1767193559401,0.02993776,88382.0,88345.0,0.04955323]
[1767193559402,0.112478,88382.0,88345.0,0.04955323]
[1767193559604,0.01209913,88403.0,88347.0,0.04955323]
[1767193559605,0.463727,88379.0,88347.0,0.04955323]
[1767193559803,0.07954907,88378.0,88347.0,0.04955323]
[1767193559979,0.03426907,88377.0,88347.0,0.04955323]
[1767193560196,0.02389731,88377.0,88347.0,0.04955323]
[1767193560395,0.00805773,88376.0,88347.0,0.05643774]
[1767193560766,0.02389731,88377.0,88347.0,0.05643774]
[1767193561020,0.04528,88378.0,88347.0,0.05643774]
[1767193561581,0.04528,88378.0,88348.0,0.04955323]
[1767193561994,0.04528,88378.0,88344.0,0.04990693]
[1767193562650,0.04528,88378.0,88348.0,0.0608721]
[1767193562837,0.05672,88377.0,88350.0,0.06087184]
[1767193563178,0.0114,88376.0,88359.0,0.04955323]
[1767193563519,0.0114,88376.0,88360.0,0.04955323]
[1767193564618,0.04532,88377.0,88359.0,0.01131746]
[1767193565033,0.0114,88376.0,88367.0,0.04955323]
[1767193565236,0.0114,88375.0,88367.0,0.04955323]
[1767193566002,0.0002,88386.0,88367.0,0.04955323]
[1767193566003,0.0002,88386.0,88368.0,0.04955323]
[1767193566193,0.0114,88385.0,88368.0,0.04955323]
[1767193566904,0.000549,88384.0,88368.0,0.04900423]
[1767193567082,0.000549,88384.0,88366.0,0.0002]
[1767193567293,0.000549,88384.0,88355.0,0.04955323]
[1767193567473,0.0111301,88384.0,88355.0,0.04955323]
[1767193567673,0.000349,88383.0,88355.0,0.04955323]
[1767193567912,0.000349,88382.0,88355.0,0.04955323]
[1767193569270,0.000349,88381.0,88355.0,0.04955323]
[1767193572416,0.000349,88381.0,88346.0,0.04955323]
[1767193572616,0.000349,88379.0,88347.0,0.04955323]
[1767193573206,0.000349,88379.0,88350.0,0.04955323]
[1767193573397,0.00657788,88380.0,88349.0,0.01131874]
[1767193573398,0.000349,88384.0,88379.0,0.000349]
[1767193573556,0.0114,88383.0,88379.0,0.000349]
[1767193573720,0.000349,88382.0,88353.0,0.04955323]
[1767193573921,0.000349,88382.0,88355.0,0.04955323]
[1767193574521,0.000349,88382.0,88355.0,0.04965967]
[1767193574937,0.000349,88382.0,88357.0,0.04955323]
[1767193575276,0.0114,88381.0,88357.0,0.04955323]
[1767193575609,0.03530511,88381.0,88357.0,0.04955323]
[1767193575813,0.0114,88381.0,88359.0,0.04955323]
[1767193576501,0.0002,88386.0,88359.0,0.04955323]
[1767193576684,0.05672,88385.0,88359.0,0.04955323]
[1767193576879,0.02392196,88384.0,88359.0,0.04955323]
[1767193577904,0.01038651,88383.0,88355.0,0.00010644]
[1767193578107,0.02392196,88384.0,88355.0,0.00010644]
[1767193578108,0.01211662,88382.0,88355.0,0.00010644]
[1767193578480,0.01211662,88382.0,88355.0,0.04965967]
[1767193578917,0.02392196,88384.0,88355.0,0.04965967]
[1767193579095,0.01039204,88383.0,88355.0,0.04965967]
[1767193579300,0.01039204,88382.0,88355.0,0.04965967]
[1767193579495,0.01039204,88381.0,88355.0,0.04965967]
[1767193579694,0.01039204,88380.0,88355.0,0.04965967]
[1767193579899,0.05385972,88384.0,88355.0,0.05576564]
[1767193580117,0.01039978,88383.0,88355.0,0.05576564]
[1767193580320,0.04033754,88382.0,88355.0,0.05576564]
[1767193580537,0.01039978,88381.0,88355.0,0.05576564]
[1767193581439,0.02993776,88380.0,88355.0,0.05576564]
[1767193581600,0.06711978,88379.0,88357.0,0.04975951]
[1767193581799,0.03432174,88378.0,88357.0,0.04975951]
[1767193582034,0.01039978,88377.0,88357.0,0.04975951]
[1767193583012,0.0114,88376.0,88357.0,0.04975951]
[1767193583220,0.0114,88376.0,88355.0,0.06801375]
[1767193583221,0.0114,88376.0,88359.0,0.04975951]
[1767193583465,0.0114,88375.0,88359.0,0.04975951]
[1767193584192,0.01085,88375.0,88359.0,0.04975951]
[1767193584747,0.000549,88359.0,88355.0,0.00010644]
[1767193585235,0.000549,88359.0,88355.0,0.04986595]
[1767193585467,0.0114,88364.0,88355.0,0.00010644]
[1767193586510,0.0114,88364.0,88355.0,0.00623304]
[1767193586910,0.0114,88364.0,88355.0,0.00010644]
[1767193587514,0.03532196,88364.0,88355.0,0.00010644]
[1767193587723,0.00720156,88364.0,88355.0,0.00010644]
[1767193588399,0.0114,88363.0,88355.0,0.04986595]
[1767193588528,0.0114,88367.0,88356.0,0.05702978]
[1767193588970,0.0114,88367.0,88355.0,0.00010644]
[1767193589376,0.0114,88367.0,88355.0,0.04986595]
[1767193589716,0.02405022,88370.0,88355.0,0.04986595]
[1767193590034,0.03545022,88369.0,88355.0,0.04986595]
[1767193590219,0.02405022,88368.0,88358.0,0.0610771]
[1767193590417,0.02849878,88377.0,88365.0,0.01131669]
[1767193590639,0.0002,88386.0,88370.0,0.04975951]
[1767193590868,0.0002,88386.0,88370.0,0.06107556]
[1767193590869,0.0114,88384.0,88370.0,0.06107556]
[1767193591067,0.0114,88384.0,88374.0,0.04975951]
[1767193591270,0.0114,88384.0,88369.0,0.01131618]
[1767193591271,0.0002,88386.0,88379.0,0.04975951]
[1767193591482,0.00033,88394.0,88388.0,0.01131375]
[1767193591677,0.0002,88396.0,88389.0,0.04975951]
[1767193591916,0.0114,88403.0,88389.0,0.04975951]
[1767193592704,0.01145209,88403.0,88395.0,0.04975951]
[1767193592910,0.0003304,88414.0,88395.0,0.04975951]
[1767193592911,0.0117304,88414.0,88397.0,0.04975951]
[1767193593118,0.0002,88413.0,88397.0,0.04975951]
[1767193593350,0.0002,88413.0,88397.0,0.06107211]
[1767193593545,0.0002,88413.0,88400.0,0.04975951]
[1767193593747,0.0002,88413.0,88402.0,0.04975951]
[1767193594386,0.0002,88413.0,88396.0,0.01131272]
[1767193594387,0.001099,88402.0,88393.0,0.0002]
[1767193594606,0.001099,88402.0,88394.0,0.0114]
[1767193594806,0.001099,88402.0,88394.0,0.06115951]
[1767193595015,0.03643231,88413.0,88395.0,0.05816338]
[1767193596172,0.03643231,88413.0,88393.0,0.00025209]
[1767193596376,0.000549,88395.0,88393.0,0.00025209]
[1767193596594,0.0114,88403.0,88393.0,0.00025209]
[1767193596810,0.0114,88403.0,88381.0,0.01131464]
[1767193596811,0.000252,88393.0,88381.0,0.04975951]
[1767193596998,0.000252,88393.0,88381.0,0.06115951]
[1767193597284,0.03623231,88402.0,88383.0,0.04975951]
[1767193597635,0.0114,88403.0,88385.0,0.04975951]
[1767193597841,0.0002,88413.0,88390.0,0.04975951]
[1767193598221,0.0114,88412.0,88390.0,0.04975951]
[1767193598898,0.04763231,88412.0,88390.0,0.04975951]
[1767193599112,0.03623231,88411.0,88392.0,0.04975951]
[1767193600430,0.000549,88392.0,88384.0,0.04975951]
[1767193600850,0.000549,88392.0,88370.0,0.01131605]
[1767193600851,0.03623231,88399.0,88368.0,0.23764114]
[1767193601134,0.03623231,88399.0,88377.0,0.04975951]
[1767193603018,0.03623231,88399.0,88373.0,0.0114]
[1767193603454,0.03623231,88399.0,88376.0,0.00633595]
[1767193603850,0.03623231,88399.0,88377.0,0.04975951]
[1767193604524,0.03623231,88399.0,88376.0,0.00633595]
[1767193604525,0.000549,88377.0,88376.0,0.00633595]
[1767193604859,0.000549,88377.0,88371.0,0.04975951]
[1767193604860,0.00035,88376.0,88371.0,0.04975951]
[1767193605064,0.0114,88385.0,88371.0,0.04975951]
[1767193605639,0.0002,88413.0,88386.0,0.04975951]
[1767193605843,0.0002,88413.0,88388.0,0.04975951]
[1767193605844,0.04783231,88412.0,88388.0,0.04975951]
[1767193606254,0.04783231,88412.0,88386.0,0.011314]
[1767193606255,0.04783231,88412.0,88389.0,0.04835443]
[1767193606458,0.04783231,88412.0,88390.0,0.05966792]
[1767193606660,0.04783231,88412.0,88392.0,0.04835443]
[1767193606881,0.04783231,88412.0,88392.0,0.05966767]
[1767193607093,0.04783231,88412.0,88392.0,0.04835443]
[1767193607656,0.03643231,88411.0,88381.0,0.05657304]
[1767193607862,0.03643231,88411.0,88382.0,0.0709923]
[1767193608081,0.03643231,88411.0,88383.0,0.05966882]
[1767193608290,0.03643231,88411.0,88385.0,0.04835443]
[1767193608789,0.03643231,88411.0,88389.0,0.01131362]